[Event "The Schackveckan 2023: Göteborg open"]
[Site "Göteborgs schackcentrum, Vegagatan 20, Gothenburg, Sweden"]
[Date "2023.08.11"]
[Round "4.11"]
[White "Mohammed, Safian Haj"]
[Black "Lindholm, Marcus"]
[Result "0-1"]
[TimeControl "15 minutes + 5 seconds per move from move one (Round 1 - 4) / 90 minutes + 30 seconds per move from move one (Round 5 - 8)"]
[WhiteFideId "1729276"]
[BlackFideId "1743473"]
[WhiteElo "1862"]
[BlackElo "1708"]

1. e4 {[%clk 00:15:09]} c5 {[%clk 00:15:09]} {[%emt 00:00:01]} 2. Nf3 {[%clk
00:15:12]} {[%emt 00:00:02]} Nc6 {[%clk 00:15:13]} {[%emt 00:00:01]} 3. d4
{[%clk 00:15:07]} {[%emt 00:00:11]} cxd4 {[%clk 00:15:16]} {[%emt 00:00:02]} 4.
Nxd4 {[%clk 00:15:11]} Nf6 {[%clk 00:15:19]} {[%emt 00:00:03]} 5. Nc3 {[%clk
00:15:15]} {[%emt 00:00:01]} e5 {[%clk 00:15:23]} 6. Ndb5 {[%clk 00:15:09]}
{[%emt 00:00:11]} d6 {[%clk 00:15:26]} {[%emt 00:00:02]} 7. Bg5 {[%clk
00:14:34]} {[%emt 00:00:39]} a6 {[%clk 00:15:27]} {[%emt 00:00:04]} 8. Na3
{[%clk 00:14:37]} {[%emt 00:00:02]} b5 {[%clk 00:15:31]} {[%emt 00:00:02]} 9.
Bxf6 {[%clk 00:14:40]} {[%emt 00:00:02]} gxf6 {[%clk 00:15:33]} {[%emt
00:00:02]} 10. Nd5 {[%clk 00:14:43]} {[%emt 00:00:01]} Be7 {[%clk 00:15:37]}
{[%emt 00:00:02]} 11. c3 {[%clk 00:14:05]} {[%emt 00:00:43]} f5 {[%clk
00:15:34]} {[%emt 00:00:08]} 12. Bd3 {[%clk 00:10:24]} {[%emt 00:03:46]} f4
{[%clk 00:15:16]} {[%emt 00:00:23]} 13. Qh5 {[%clk 00:10:09]} {[%emt 00:00:19]}
Be6 {[%clk 00:14:34]} {[%emt 00:00:48]} 14. Nc2 {[%clk 00:09:33]} {[%emt
00:00:41]} Kd7 {[%clk 00:12:31]} {[%emt 00:02:08]} 15. Ncb4 {[%clk 00:08:51]}
{[%emt 00:00:47]} Nxb4 {[%clk 00:12:19]} {[%emt 00:00:17]} 16. Nxb4 {[%clk
00:08:33]} {[%emt 00:00:23]} Qc7 {[%clk 00:10:38]} {[%emt 00:01:40]} 17. a4
{[%clk 00:08:12]} {[%emt 00:00:32]} Qc5 {[%clk 00:10:08]} {[%emt 00:00:34]} 18.
Rd1 {[%clk 00:05:57]} {[%emt 00:02:21]} Rhg8 {[%clk 00:09:34]} {[%emt
00:00:39]} 19. Nxa6 {[%clk 00:04:04]} {[%emt 00:01:59]} Rxa6 {[%clk 00:08:55]}
{[%emt 00:00:43]} 20. Bxb5+ {[%clk 00:04:07]} {[%emt 00:00:02]} Rc6 {[%clk
00:08:34]} {[%emt 00:00:26]} 21. Rd5 {[%clk 00:01:49]} {[%emt 00:02:23]} Bxd5
{[%clk 00:08:20]} {[%emt 00:00:19]} 22. exd5 {[%clk 00:01:52]} {[%emt
00:00:02]} Qxd5 {[%clk 00:08:05]} {[%emt 00:00:20]} 23. Qh3+ {[%clk 00:01:41]}
{[%emt 00:00:16]} Kc7 {[%clk 00:07:36]} {[%emt 00:00:34]} 24. Bxc6 {[%clk
00:00:52]} {[%emt 00:00:54]} Qxc6 {[%clk 00:07:26]} {[%emt 00:00:15]} 25. O-O
{[%clk 00:00:11]} {[%emt 00:00:47]} f3 {[%clk 00:07:12]} {[%emt 00:00:19]} 26.
g3 {[%clk 00:00:13]} {[%emt 00:00:02]} Qxa4 {[%clk 00:06:50]} {[%emt 00:00:28]}
27. Qxh7 {[%clk 00:00:07]} {[%emt 00:00:11]} Qg4 {[%clk 00:06:42]} {[%emt
00:00:13]} 28. Qxf7 {[%clk 00:00:06]} {[%emt 00:00:07]} Qh3 {[%clk 00:06:34]}
{[%emt 00:00:11]} 29. Qxf3 {[%clk 00:00:09]} {[%emt 00:00:02]} Rh8 {[%clk
00:06:29]} {[%emt 00:00:11]} 30. Qg2 {[%clk 00:00:10]} {[%emt 00:00:04]} Qxg2+
{[%clk 00:06:31]} {[%emt 00:00:03]} 31. Kxg2 {[%clk 00:00:14]} {[%emt
00:00:01]} Rb8 {[%clk 00:06:35]} {[%emt 00:00:01]} 32. b4 {[%clk 00:00:16]}
{[%emt 00:00:03]} e4 {[%clk 00:06:33]} {[%emt 00:00:06]} 33. Re1 {[%clk
00:00:19]} {[%emt 00:00:02]} d5 {[%clk 00:06:37]} {[%emt 00:00:02]} 34. f3
{[%clk 00:00:21]} {[%emt 00:00:03]} Bf6 {[%clk 00:06:32]} {[%emt 00:00:10]} 35.
Re3 {[%clk 00:00:21]} {[%emt 00:00:05]} Re8 {[%clk 00:06:13]} {[%emt 00:00:24]}
36. fxe4 {[%clk 00:00:24]} {[%emt 00:00:02]} dxe4 {[%clk 00:06:17]} {[%emt
00:00:01]} 37. g4 {[%clk 00:00:24]} {[%emt 00:00:05]} Kc6 {[%clk 00:06:09]}
{[%emt 00:00:11]} 38. Kg3 {[%clk 00:00:21]} {[%emt 00:00:10]} Kb5 {[%clk
00:06:07]} {[%emt 00:00:07]} 39. Kf4 {[%clk 00:00:24]} {[%emt 00:00:02]} Be5+
{[%clk 00:05:48]} {[%emt 00:00:24]} 0-1

[Event "The Schackveckan 2023: Göteborg open"]
[Site "Göteborgs schackcentrum, Vegagatan 20, Gothenburg, Sweden"]
[Date "2023.08.11"]
[Round "4.12"]
[White "Johansson, Jan"]
[Black "Wengholm, Anders"]
[Result "0-1"]
[TimeControl "15 minutes + 5 seconds per move from move one (Round 1 - 4) / 90 minutes + 30 seconds per move from move one (Round 5 - 8)"]
[WhiteFideId "1747568"]
[BlackFideId "1704818"]
[WhiteElo "1694"]
[BlackElo "2155"]

1. d4 {[%clk 00:15:08]} {[%emt 00:00:02]} d6 {[%clk 00:15:05]} {[%emt
00:00:06]} 2. Bf4 {[%clk 00:15:07]} {[%emt 00:00:06]} g6 {[%clk 00:15:06]}
{[%emt 00:00:03]} 3. Nc3 {[%clk 00:14:56]} {[%emt 00:00:16]} Bg7 {[%clk
00:15:07]} {[%emt 00:00:04]} 4. Qd2 {[%clk 00:13:51]} {[%emt 00:01:10]} Nc6
{[%clk 00:13:42]} {[%emt 00:01:30]} 5. d5 {[%clk 00:13:14]} {[%emt 00:00:42]}
Ne5 {[%clk 00:13:42]} {[%emt 00:00:05]} 6. e4 {[%clk 00:13:08]} {[%emt
00:00:11]} c5 {[%clk 00:13:36]} {[%emt 00:00:12]} 7. h3 {[%clk 00:12:18]}
{[%emt 00:00:55]} a6 {[%clk 00:13:39]} {[%emt 00:00:03]} 8. Be3 {[%clk
00:12:19]} {[%emt 00:00:02]} b5 {[%clk 00:13:40]} {[%emt 00:00:04]} 9. f4
{[%clk 00:12:19]} {[%emt 00:00:05]} Nd7 {[%clk 00:13:44]} {[%emt 00:00:01]} 10.
Nf3 {[%clk 00:12:16]} {[%emt 00:00:08]} Qc7 {[%clk 00:13:42]} {[%emt 00:00:08]}
11. Be2 {[%clk 00:11:59]} {[%emt 00:00:22]} Ngf6 {[%clk 00:13:24]} {[%emt
00:00:23]} 12. e5 {[%clk 00:09:25]} {[%emt 00:02:38]} Nh5 {[%clk 00:09:58]}
{[%emt 00:03:31]} 13. O-O-O {[%clk 00:07:18]} {[%emt 00:02:12]} Ng3 {[%clk
00:09:03]} {[%emt 00:01:01]} 14. Rhe1 {[%clk 00:07:15]} {[%emt 00:00:09]} b4
{[%clk 00:08:48]} {[%emt 00:00:19]} 15. Na4 {[%clk 00:06:15]} {[%emt 00:01:05]}
O-O {[%clk 00:08:31]} {[%emt 00:00:21]} 16. Bf2 {[%clk 00:05:07]} {[%emt
00:01:12]} Ne4 {[%clk 00:07:04]} {[%emt 00:01:32]} 17. Qe3 {[%clk 00:05:11]}
{[%emt 00:00:02]} Nxf2 {[%clk 00:07:03]} {[%emt 00:00:06]} 18. Qxf2 {[%clk
00:05:15]} {[%emt 00:00:01]} Qa5 {[%clk 00:05:58]} {[%emt 00:01:10]} 19. b3
{[%clk 00:05:10]} {[%emt 00:00:10]} Nb6 {[%clk 00:05:52]} {[%emt 00:00:11]} 20.
Nxb6 {[%clk 00:04:04]} {[%emt 00:01:11]} Qxb6 {[%clk 00:05:56]} {[%emt
00:00:01]} 21. g4 {[%clk 00:03:56]} {[%emt 00:00:12]} a5 {[%clk 00:05:58]}
{[%emt 00:00:04]} 22. Bd3 {[%clk 00:03:31]} {[%emt 00:00:30]} a4 {[%clk
00:06:01]} {[%emt 00:00:03]} 23. f5 {[%clk 00:03:21]} {[%emt 00:00:15]} axb3
{[%clk 00:05:57]} {[%emt 00:00:08]} 24. axb3 {[%clk 00:03:25]} {[%emt
00:00:02]} Ba6 {[%clk 00:04:44]} {[%emt 00:01:18]} 25. Kd2 {[%clk 00:03:00]}
{[%emt 00:00:29]} Bxd3 {[%clk 00:04:15]} {[%emt 00:00:35]} 26. Kxd3 {[%clk
00:02:40]} {[%emt 00:00:24]} Ra2 {[%clk 00:04:18]} {[%emt 00:00:02]} 27. Qe3
{[%clk 00:01:36]} {[%emt 00:01:09]} Rc8 {[%clk 00:03:30]} {[%emt 00:00:54]} 28.
Ra1 {[%clk 00:00:33]} {[%emt 00:01:08]} Qa6+ {[%clk 00:03:30]} {[%emt
00:00:05]} 0-1

[Event "The Schackveckan 2023: Göteborg open"]
[Site "Göteborgs schackcentrum, Vegagatan 20, Gothenburg, Sweden"]
[Date "2023.08.11"]
[Round "4.13"]
[White "Thern, Alfred"]
[Black "Svensson, Leif"]
[Result "1-0"]
[TimeControl "15 minutes + 5 seconds per move from move one (Round 1 - 4) / 90 minutes + 30 seconds per move from move one (Round 5 - 8)"]
[WhiteFideId "1775227"]
[BlackFideId "1702459"]
[WhiteElo "1643"]
[BlackElo "2038"]

1. e4 {[%clk 00:15:07]} {[%emt 00:00:03]} Nf6 {[%clk 00:15:08]} {[%emt
00:00:03]} 2. e5 {[%clk 00:15:08]} {[%emt 00:00:03]} Nd5 {[%clk 00:15:12]} 3.
d4 {[%clk 00:15:12]} {[%emt 00:00:02]} d6 {[%clk 00:15:16]} {[%emt 00:00:01]} 4.
Nf3 {[%clk 00:15:13]} {[%emt 00:00:04]} g6 {[%clk 00:15:20]} 5. Bd3 {[%clk
00:15:13]} {[%emt 00:00:05]} Bg7 {[%clk 00:15:22]} {[%emt 00:00:03]} 6. O-O
{[%clk 00:15:14]} {[%emt 00:00:04]} O-O {[%clk 00:15:15]} {[%emt 00:00:11]} 7.
Re1 {[%clk 00:15:16]} {[%emt 00:00:03]} Nc6 {[%clk 00:14:57]} {[%emt 00:00:24]}
8. exd6 {[%clk 00:14:35]} {[%emt 00:00:46]} cxd6 {[%clk 00:14:59]} {[%emt
00:00:03]} 9. c3 {[%clk 00:14:12]} {[%emt 00:00:28]} e5 {[%clk 00:14:36]}
{[%emt 00:00:28]} 10. Bc4 {[%clk 00:13:53]} {[%emt 00:00:24]} Nb6 {[%clk
00:14:25]} {[%emt 00:00:16]} 11. Bb3 {[%clk 00:13:53]} {[%emt 00:00:05]} Bg4
{[%clk 00:14:23]} {[%emt 00:00:06]} 12. dxe5 {[%clk 00:13:09]} {[%emt
00:00:50]} dxe5 {[%clk 00:14:26]} {[%emt 00:00:01]} 13. Qe2 {[%clk 00:12:29]}
{[%emt 00:00:46]} Qc7 {[%clk 00:14:15]} {[%emt 00:00:16]} 14. h3 {[%clk
00:12:26]} {[%emt 00:00:08]} Bf5 {[%clk 00:13:41]} {[%emt 00:00:39]} 15. g4
{[%clk 00:12:00]} {[%emt 00:00:31]} Bd7 {[%clk 00:13:08]} {[%emt 00:00:38]} 16.
Be3 {[%clk 00:11:15]} {[%emt 00:00:49]} a5 {[%clk 00:12:16]} {[%emt 00:00:58]}
17. a4 {[%clk 00:11:11]} {[%emt 00:00:09]} h6 {[%clk 00:11:29]} {[%emt
00:00:52]} 18. Na3 {[%clk 00:10:55]} {[%emt 00:00:21]} Ne7 {[%clk 00:10:15]}
{[%emt 00:01:19]} 19. Bxb6 {[%clk 00:09:24]} {[%emt 00:01:37]} Qxb6 {[%clk
00:10:16]} {[%emt 00:00:03]} 20. Nxe5 {[%clk 00:09:16]} {[%emt 00:00:14]} Bxe5
{[%clk 00:07:37]} {[%emt 00:02:43]} 21. Qxe5 {[%clk 00:09:17]} {[%emt
00:00:05]} Qxb3 {[%clk 00:07:40]} {[%emt 00:00:02]} 22. Qxe7 {[%clk 00:09:17]}
{[%emt 00:00:05]} Bc6 {[%clk 00:07:43]} 23. Qe3 {[%clk 00:07:58]} {[%emt
00:01:22]} Qd5 {[%clk 00:06:13]} {[%emt 00:01:37]} 24. f3 {[%clk 00:07:16]}
{[%emt 00:00:47]} Rae8 {[%clk 00:05:36]} {[%emt 00:00:42]} 25. Qf2 {[%clk
00:06:37]} {[%emt 00:00:44]} Bxa4 {[%clk 00:05:09]} {[%emt 00:00:32]} 26. Kg2
{[%clk 00:05:27]} {[%emt 00:01:15]} Rxe1 {[%clk 00:04:20]} {[%emt 00:00:54]} 27.
Rxe1 {[%clk 00:05:27]} {[%emt 00:00:05]} Bc6 {[%clk 00:04:22]} {[%emt
00:00:02]} 28. Nc2 {[%clk 00:04:48]} {[%emt 00:00:44]} h5 {[%clk 00:03:58]}
{[%emt 00:00:30]} 29. Nd4 {[%clk 00:04:23]} {[%emt 00:00:31]} hxg4 {[%clk
00:03:58]} {[%emt 00:00:04]} 30. hxg4 {[%clk 00:04:10]} {[%emt 00:00:18]} Bd7
{[%clk 00:03:45]} {[%emt 00:00:17]} 31. Kg1 {[%clk 00:03:40]} {[%emt 00:00:35]}
b5 {[%clk 00:03:29]} {[%emt 00:00:22]} 32. Re3 {[%clk 00:02:41]} {[%emt
00:01:03]} b4 {[%clk 00:03:28]} {[%emt 00:00:06]} 33. Rd3 {[%clk 00:01:30]}
{[%emt 00:01:16]} bxc3 {[%clk 00:03:29]} {[%emt 00:00:04]} 34. Rxc3 {[%clk
00:01:26]} {[%emt 00:00:09]} Rc8 {[%clk 00:02:34]} {[%emt 00:01:00]} 35. Rxc8+
{[%clk 00:01:24]} {[%emt 00:00:07]} Bxc8 {[%clk 00:02:37]} {[%emt 00:00:01]} 36.
Qe3 {[%clk 00:01:16]} {[%emt 00:00:14]} Bb7 {[%clk 00:02:36]} {[%emt 00:00:06]}
37. Kf2 {[%clk 00:01:03]} {[%emt 00:00:18]} a4 {[%clk 00:02:36]} {[%emt
00:00:05]} 38. Qc3 {[%clk 00:00:42]} {[%emt 00:00:27]} Qe5 {[%clk 00:02:12]}
{[%emt 00:00:29]} 39. Ne2 {[%clk 00:00:30]} {[%emt 00:00:16]} Qd5 {[%clk
00:01:29]} {[%emt 00:00:48]} 40. Qe3 {[%clk 00:00:16]} {[%emt 00:00:19]} Qd6
{[%clk 00:01:12]} {[%emt 00:00:22]} 41. Kg2 {[%clk 00:00:08]} {[%emt 00:00:13]}
Qd7 {[%clk 00:01:11]} {[%emt 00:00:06]} 42. Qd4 {[%clk 00:00:08]} {[%emt
00:00:05]} Qe6 {[%clk 00:00:38]} {[%emt 00:00:38]} 43. Qd8+ {[%clk 00:00:10]}
{[%emt 00:00:03]} Kh7 {[%clk 00:00:34]} {[%emt 00:00:09]} 44. Qd3 {[%clk
00:00:06]} {[%emt 00:00:09]} Qxg4+ {[%clk 00:00:36]} {[%emt 00:00:02]} 45. Ng3
{[%clk 00:00:10]} {[%emt 00:00:02]} Qe6 {[%clk 00:00:31]} {[%emt 00:00:10]} 46.
Qf1 {[%clk 00:00:07]} {[%emt 00:00:08]} Qb3 {[%clk 00:00:28]} {[%emt 00:00:08]}
47. Qe2 {[%clk 00:00:11]} {[%emt 00:00:02]} Qd5 {[%clk 00:00:08]} {[%emt
00:00:24]} 48. Qf1 {[%clk 00:00:09]} {[%emt 00:00:08]} 1-0

[Event "The Schackveckan 2023: Göteborg open"]
[Site "Göteborgs schackcentrum, Vegagatan 20, Gothenburg, Sweden"]
[Date "2023.08.11"]
[Round "4.14"]
[White "Granath, Andreas"]
[Black "Havner, Arvid"]
[Result "1-0"]
[TimeControl "15 minutes + 5 seconds per move from move one (Round 1 - 4) / 90 minutes + 30 seconds per move from move one (Round 5 - 8)"]
[WhiteFideId "1743333"]
[BlackFideId "1769308"]
[WhiteElo "1673"]
[BlackElo "1825"]

1. d4 {[%clk 00:15:08]} {[%emt 00:00:01]} Nf6 {[%clk 00:15:10]} {[%emt
00:00:01]} 2. c4 {[%clk 00:15:12]} {[%emt 00:00:01]} e6 {[%clk 00:15:14]} 3. g3
{[%clk 00:15:15]} {[%emt 00:00:02]} d5 {[%clk 00:15:14]} {[%emt 00:00:05]} 4.
Bg2 {[%clk 00:15:18]} {[%emt 00:00:01]} Bb4+ {[%clk 00:15:15]} {[%emt
00:00:04]} 5. Nd2 {[%clk 00:15:21]} {[%emt 00:00:02]} O-O {[%clk 00:15:08]}
{[%emt 00:00:12]} 6. Ngf3 {[%clk 00:15:25]} {[%emt 00:00:02]} dxc4 {[%clk
00:14:57]} {[%emt 00:00:16]} 7. O-O {[%clk 00:15:03]} {[%emt 00:00:27]} b5
{[%clk 00:14:47]} {[%emt 00:00:14]} 8. Ne5 {[%clk 00:14:15]} {[%emt 00:00:53]}
Nd5 {[%clk 00:14:52]} {[%emt 00:00:01]} 9. a3 {[%clk 00:13:18]} {[%emt
00:01:02]} Bd6 {[%clk 00:14:46]} {[%emt 00:00:09]} 10. a4 {[%clk 00:12:48]}
{[%emt 00:00:37]} Bb7 {[%clk 00:14:14]} {[%emt 00:00:37]} 11. axb5 {[%clk
00:12:39]} {[%emt 00:00:14]} Bxe5 {[%clk 00:14:17]} {[%emt 00:00:01]} 12. dxe5
{[%clk 00:12:42]} {[%emt 00:00:02]} c3 {[%clk 00:14:19]} {[%emt 00:00:03]} 13.
Nc4 {[%clk 00:12:20]} {[%emt 00:00:27]} Nd7 {[%clk 00:13:40]} {[%emt 00:00:44]}
14. f4 {[%clk 00:11:39]} {[%emt 00:00:46]} N7b6 {[%clk 00:13:36]} {[%emt
00:00:09]} 15. Na5 {[%clk 00:11:25]} {[%emt 00:00:19]} c2 {[%clk 00:11:04]}
{[%emt 00:02:37]} 16. Qxc2 {[%clk 00:11:16]} {[%emt 00:00:15]} Nb4 {[%clk
00:11:05]} {[%emt 00:00:03]} 17. Qc5 {[%clk 00:08:59]} {[%emt 00:02:22]} Bxg2
{[%clk 00:10:56]} {[%emt 00:00:14]} 18. Kxg2 {[%clk 00:08:47]} {[%emt
00:00:17]} Qd5+ {[%clk 00:10:47]} {[%emt 00:00:14]} 19. Qxd5 {[%clk 00:08:49]}
{[%emt 00:00:03]} N6xd5 {[%clk 00:10:40]} {[%emt 00:00:12]} 20. Bd2 {[%clk
00:08:47]} {[%emt 00:00:07]} Nc2 {[%clk 00:10:03]} {[%emt 00:00:43]} 21. Rac1
{[%clk 00:06:39]} {[%emt 00:02:12]} Nce3+ {[%clk 00:10:03]} {[%emt 00:00:05]}
22. Kf2 {[%clk 00:06:36]} {[%emt 00:00:09]} Nxf1 {[%clk 00:10:04]} {[%emt
00:00:02]} 23. Kxf1 {[%clk 00:06:39]} {[%emt 00:00:03]} Rab8 {[%clk 00:09:56]}
{[%emt 00:00:12]} 24. e4 {[%clk 00:06:35]} {[%emt 00:00:10]} Ne7 {[%clk
00:08:39]} {[%emt 00:01:22]} 25. Rxc7 {[%clk 00:06:35]} {[%emt 00:00:06]} Rfe8
{[%clk 00:07:13]} {[%emt 00:01:31]} 26. Nb7 {[%clk 00:05:01]} {[%emt 00:01:38]}
Nc8 {[%clk 00:06:21]} {[%emt 00:00:56]} 27. Bb4 {[%clk 00:04:26]} {[%emt
00:00:41]} h6 {[%clk 00:05:26]} {[%emt 00:00:59]} 28. Nd6 {[%clk 00:04:26]}
{[%emt 00:00:05]} Nxd6 {[%clk 00:05:24]} {[%emt 00:00:08]} 29. exd6 {[%clk
00:04:23]} {[%emt 00:00:08]} Rxb5 {[%clk 00:02:43]} {[%emt 00:02:46]} 30. d7
{[%clk 00:04:25]} {[%emt 00:00:05]} Rd8 {[%clk 00:02:45]} {[%emt 00:00:01]} 31.
Be7 {[%clk 00:04:16]} {[%emt 00:00:14]} Rxd7 {[%clk 00:01:51]} {[%emt
00:00:59]} 32. Rxd7 {[%clk 00:04:17]} {[%emt 00:00:04]} Rxb2 {[%clk 00:01:55]}
{[%emt 00:00:02]} 33. Rxa7 {[%clk 00:04:19]} {[%emt 00:00:03]} Rxh2 {[%clk
00:01:54]} {[%emt 00:00:05]} 34. Bd6 {[%clk 00:04:07]} {[%emt 00:00:17]} g5
{[%clk 00:01:23]} {[%emt 00:00:37]} 35. Ra8+ {[%clk 00:04:03]} {[%emt
00:00:08]} Kg7 {[%clk 00:01:23]} {[%emt 00:00:05]} 36. Be5+ {[%clk 00:04:06]}
{[%emt 00:00:02]} Kg6 {[%clk 00:01:26]} {[%emt 00:00:02]} 37. g4 {[%clk
00:03:48]} {[%emt 00:00:23]} gxf4 {[%clk 00:01:20]} {[%emt 00:00:11]} 38. Rg8+
{[%clk 00:03:42]} {[%emt 00:00:11]} Kh7 {[%clk 00:01:20]} {[%emt 00:00:05]} 39.
Rg7+ {[%clk 00:03:43]} {[%emt 00:00:03]} Kh8 {[%clk 00:01:23]} {[%emt
00:00:02]} 40. Rxf7+ {[%clk 00:03:46]} {[%emt 00:00:02]} Kg8 {[%clk 00:01:27]}
{[%emt 00:00:01]} 41. Rxf4 {[%clk 00:03:37]} {[%emt 00:00:15]} h5 {[%clk
00:01:20]} {[%emt 00:00:12]} 42. Kg1 {[%clk 00:02:07]} {[%emt 00:01:34]} Rh4
{[%clk 00:00:44]} {[%emt 00:00:41]} 43. g5 {[%clk 00:01:44]} {[%emt 00:00:29]}
Rg4+ {[%clk 00:00:36]} {[%emt 00:00:13]} 44. Rxg4 {[%clk 00:01:46]} {[%emt
00:00:03]} hxg4 {[%clk 00:00:40]} {[%emt 00:00:02]} 45. Kg2 {[%clk 00:01:49]}
{[%emt 00:00:01]} Kf7 {[%clk 00:00:42]} {[%emt 00:00:03]} 46. Kg3 {[%clk
00:01:52]} {[%emt 00:00:02]} Ke8 {[%emt 00:00:03]} 1-0

[Event "The Schackveckan 2023: Göteborg open"]
[Site "Göteborgs schackcentrum, Vegagatan 20, Gothenburg, Sweden"]
[Date "2023.08.11"]
[Round "4.15"]
[White "Kosmidis, Thomas"]
[Black "Torres, Lucas"]
[Result "0-1"]
[TimeControl "15 minutes + 5 seconds per move from move one (Round 1 - 4) / 90 minutes + 30 seconds per move from move one (Round 5 - 8)"]
[WhiteFideId "1753380"]
[BlackFideId "1769464"]
[WhiteElo "1721"]
[BlackElo "1501"]

1. d4 {[%clk 00:15:08]} {[%emt 00:00:02]} d5 {[%clk 00:15:09]} {[%emt
00:00:01]} 2. c4 {[%clk 00:15:10]} {[%emt 00:00:02]} c6 {[%clk 00:15:13]}
{[%emt 00:00:02]} 3. cxd5 {[%clk 00:15:12]} {[%emt 00:00:04]} cxd5 {[%clk
00:15:17]} 4. Nc3 {[%clk 00:15:15]} {[%emt 00:00:02]} Nf6 {[%clk 00:15:19]}
{[%emt 00:00:03]} 5. Nf3 {[%clk 00:15:19]} {[%emt 00:00:01]} Nc6 {[%clk
00:15:11]} {[%emt 00:00:14]} 6. Bf4 {[%clk 00:15:13]} {[%emt 00:00:09]} Qb6
{[%clk 00:14:27]} {[%emt 00:00:49]} 7. Qb3 {[%clk 00:15:11]} {[%emt 00:00:04]}
Nxd4 {[%clk 00:13:25]} {[%emt 00:01:10]} 8. Qa4+ {[%clk 00:14:58]} {[%emt
00:00:19]} Nc6 {[%clk 00:13:14]} {[%emt 00:00:16]} 9. Qc2 {[%clk 00:13:51]}
{[%emt 00:01:13]} e6 {[%clk 00:12:50]} {[%emt 00:00:28]} 10. e3 {[%clk
00:13:55]} Bb4 {[%clk 00:12:48]} {[%emt 00:00:07]} 11. Be2 {[%clk 00:13:47]}
{[%emt 00:00:13]} O-O {[%clk 00:12:49]} {[%emt 00:00:05]} 12. O-O {[%clk
00:13:51]} {[%emt 00:00:01]} Bd7 {[%clk 00:12:35]} {[%emt 00:00:19]} 13. Ne5
{[%clk 00:13:42]} {[%emt 00:00:13]} Nxe5 {[%clk 00:12:25]} {[%emt 00:00:14]} 14.
Bxe5 {[%clk 00:13:46]} {[%emt 00:00:02]} Bxc3 {[%clk 00:12:24]} {[%emt
00:00:06]} 15. Bxc3 {[%clk 00:13:30]} {[%emt 00:00:21]} Rac8 {[%clk 00:12:21]}
{[%emt 00:00:08]} 16. Bd3 {[%clk 00:13:18]} {[%emt 00:00:17]} h6 {[%clk
00:11:56]} {[%emt 00:00:30]} 17. Qb1 {[%clk 00:13:22]} {[%emt 00:00:02]} Ne8
{[%clk 00:11:21]} {[%emt 00:00:38]} 18. Qd1 {[%clk 00:13:15]} {[%emt 00:00:14]}
f5 {[%clk 00:09:30]} {[%emt 00:01:55]} 19. Qh5 {[%clk 00:12:47]} {[%emt
00:00:33]} Nf6 {[%clk 00:09:30]} {[%emt 00:00:05]} 20. Qh4 {[%clk 00:11:27]}
{[%emt 00:01:23]} Bb5 {[%clk 00:07:35]} {[%emt 00:02:02]} 21. Rfd1 {[%clk
00:11:31]} {[%emt 00:00:01]} Bxd3 {[%clk 00:07:25]} {[%emt 00:00:14]} 22. Rxd3
{[%clk 00:11:35]} Rc4 {[%clk 00:07:11]} {[%emt 00:00:21]} 23. Qg3 {[%clk
00:11:38]} {[%emt 00:00:02]} Rg4 {[%clk 00:07:04]} {[%emt 00:00:12]} 24. Qe5
{[%clk 00:11:39]} {[%emt 00:00:01]} Nd7 {[%clk 00:06:02]} {[%emt 00:01:10]} 25.
Bd4 {[%clk 00:10:47]} {[%emt 00:00:57]} Nxe5 {[%clk 00:05:44]} {[%emt
00:00:23]} 26. Bxb6 {[%clk 00:10:50]} {[%emt 00:00:03]} Nxd3 {[%clk 00:05:47]}
{[%emt 00:00:02]} 27. Bxa7 {[%clk 00:10:37]} {[%emt 00:00:18]} Nxb2 {[%clk
00:04:35]} {[%emt 00:01:16]} 28. Rb1 {[%clk 00:10:41]} Ra8 {[%clk 00:04:18]}
{[%emt 00:00:23]} 29. Bd4 {[%clk 00:10:37]} {[%emt 00:00:11]} Rxa2 {[%clk
00:04:05]} {[%emt 00:00:17]} 30. Bxb2 {[%clk 00:10:32]} {[%emt 00:00:09]} Rb4
{[%clk 00:04:08]} {[%emt 00:00:03]} 0-1